[Event "*** Titled Tuesday Blitz"]
[Site "Chess.com"]
[Date "2021.04.20"]
[Round "9"]
[White "Grandmaster2B"]
[Black "TeukkaSalama"]
[Result "0-1"]
[WhiteElo "2522"]
[BlackElo "2388"]
[TimeControl "180+1"]
[EndTime "11:44:53 PDT"]
[Termination "TeukkaSalama won by resignation"]

1. e4 {[%clk 0:03:00.9]} 1... c6 {[%clk 0:03:00.2]} 2. d4 {[%clk 0:03:00.4]}
2... d5 {[%clk 0:03:00.7]} 3. exd5 {[%clk 0:03:01.3]} 3... cxd5 {[%clk
0:03:01.3]} 4. Bd3 {[%clk 0:03:01.9]} 4... Nc6 {[%clk 0:03:01]} 5. c3 {[%clk
0:03:02.4]} 5... Qc7 {[%clk 0:03:01.1]} 6. h3 {[%clk 0:03:02.3]} 6... g6 {[%clk
0:02:57]} 7. Nf3 {[%clk 0:03:02.6]} 7... Bf5 {[%clk 0:02:55.9]} 8. O-O {[%clk
0:03:02.2]} 8... Bxd3 {[%clk 0:02:55]} 9. Qxd3 {[%clk 0:03:03.1]} 9... Bg7
{[%clk 0:02:52.2]} 10. Qd1 {[%clk 0:03:03.3]} 10... Nf6 {[%clk 0:02:51]} 11. Ne1
{[%clk 0:03:03.5]} 11... O-O {[%clk 0:02:50.5]} 12. Nd3 {[%clk 0:03:03.7]} 12...
b5 {[%clk 0:02:39.9]} 13. Bf4 {[%clk 0:03:03]} 13... Qb6 {[%clk 0:02:35.8]} 14.
Nd2 {[%clk 0:02:48.8]} 14... a5 {[%clk 0:02:35.3]} 15. Nb3 {[%clk 0:02:46.6]}
15... b4 {[%clk 0:02:31.8]} 16. Nbc5 {[%clk 0:02:47.2]} 16... Rfd8 {[%clk
0:02:12.7]} 17. Re1 {[%clk 0:02:45.1]} 17... e6 {[%clk 0:02:12.3]} 18. Bg5
{[%clk 0:02:43]} 18... h6 {[%clk 0:02:09.8]} 19. Bh4 {[%clk 0:02:40.1]} 19... g5
{[%clk 0:02:09.7]} 20. Bg3 {[%clk 0:02:39.8]} 20... Nd7 {[%clk 0:01:48.3]} 21.
Nxd7 {[%clk 0:02:24.8]} 21... Rxd7 {[%clk 0:01:48.5]} 22. Nc5 {[%clk 0:02:25.7]}
22... Rdd8 {[%clk 0:01:48.6]} 23. Qe2 {[%clk 0:02:23.8]} 23... a4 {[%clk
0:01:39.5]} 24. h4 {[%clk 0:02:11.7]} 24... a3 {[%clk 0:01:36.3]} 25. hxg5
{[%clk 0:02:09.3]} 25... hxg5 {[%clk 0:01:29.2]} 26. Nxe6 {[%clk 0:01:22.7]}
26... fxe6 {[%clk 0:01:16.6]} 27. Qxe6+ {[%clk 0:01:23.1]} 27... Kh8 {[%clk
0:01:17.1]} 28. Bc7 {[%clk 0:01:22.3]} 28... Qxc7 {[%clk 0:00:54.6]} 29. Re3
{[%clk 0:01:22]} 29... g4 {[%clk 0:00:43.9]} 30. bxa3 {[%clk 0:01:03.9]} 30...
Qd7 {[%clk 0:00:32.4]} 31. Qg6 {[%clk 0:00:49.5]} 31... bxc3 {[%clk 0:00:28.2]}
32. Rxc3 {[%clk 0:00:31.9]} 32... Nxd4 {[%clk 0:00:27.5]} 33. Re1 {[%clk
0:00:21.8]} 33... Qf5 {[%clk 0:00:25.9]} 34. Qb6 {[%clk 0:00:13.2]} 34... Rf8
{[%clk 0:00:21]} 35. f4 {[%clk 0:00:07]} 35... gxf3 {[%clk 0:00:13.5]} 36. Rf1
{[%clk 0:00:05.8]} 36... f2+ {[%clk 0:00:12.8]} 37. Kh1 {[%clk 0:00:04]} 37...
Rf6 {[%clk 0:00:10.7]} 38. Qb4 {[%clk 0:00:01.4]} 38... Rh6+ {[%clk 0:00:10.2]}
0-1

[Event "*** Titled Tuesday Blitz"]
[Site "Chess.com"]
[Date "2021.04.20"]
[Round "9"]
[White "attack2mateU"]
[Black "dropstoneDP"]
[Result "1-0"]
[WhiteElo "2720"]
[BlackElo "2918"]
[TimeControl "180+1"]
[EndTime "11:44:55 PDT"]
[Termination "attack2mateU won by checkmate"]

1. e4 {[%clk 0:02:59.1]} 1... c6 {[%clk 0:02:59.7]} 2. Nc3 {[%clk 0:02:57.8]}
2... d5 {[%clk 0:02:59.9]} 3. Nf3 {[%clk 0:02:58.7]} 3... Bg4 {[%clk 0:02:59.9]}
4. h3 {[%clk 0:02:58.5]} 4... Bxf3 {[%clk 0:03:00.5]} 5. Qxf3 {[%clk 0:02:59.3]}
5... e6 {[%clk 0:03:01.2]} 6. Be2 {[%clk 0:02:59.1]} 6... Nd7 {[%clk 0:02:59.8]}
7. d4 {[%clk 0:02:57.8]} 7... g6 {[%clk 0:03:00.3]} 8. Be3 {[%clk 0:02:56.7]}
8... Bg7 {[%clk 0:03:00.3]} 9. O-O-O {[%clk 0:02:56.3]} 9... Ne7 {[%clk
0:03:00.5]} 10. g4 {[%clk 0:02:50.6]} 10... Qa5 {[%clk 0:03:00]} 11. Kb1 {[%clk
0:02:50]} 11... a6 {[%clk 0:02:39.8]} 12. h4 {[%clk 0:02:44.8]} 12... b5 {[%clk
0:02:40]} 13. exd5 {[%clk 0:02:36]} 13... cxd5 {[%clk 0:02:39.2]} 14. Bd3 {[%clk
0:02:35.9]} 14... Nc6 {[%clk 0:01:37.7]} 15. Ne2 {[%clk 0:02:30]} 15... Nb4
{[%clk 0:01:35.9]} 16. Nc1 {[%clk 0:02:29]} 16... h6 {[%clk 0:00:43.3]} 17. Bd2
{[%clk 0:02:13.9]} 17... Qa4 {[%clk 0:00:36.7]} 18. Bxb4 {[%clk 0:01:26.2]}
18... Qxb4 {[%clk 0:00:36.5]} 19. Ne2 {[%clk 0:01:26.3]} 19... Nb6 {[%clk
0:00:33]} 20. h5 {[%clk 0:01:24]} 20... g5 {[%clk 0:00:32.9]} 21. Qe3 {[%clk
0:01:05.1]} 21... Na4 {[%clk 0:00:25.9]} 22. Qc1 {[%clk 0:01:04.8]} 22... Rc8
{[%clk 0:00:25.9]} 23. Ka1 {[%clk 0:01:01.5]} 23... O-O {[%clk 0:00:21.1]} 24.
f4 {[%clk 0:00:26.4]} 24... gxf4 {[%clk 0:00:20.2]} 25. g5 {[%clk 0:00:26.8]}
25... hxg5 {[%clk 0:00:19.3]} 26. h6 {[%clk 0:00:27.1]} 26... Bf6 {[%clk
0:00:19.7]} 27. c3 {[%clk 0:00:27.2]} 27... Qd6 {[%clk 0:00:18.1]} 28. Rdg1
{[%clk 0:00:18.9]} 28... Kh8 {[%clk 0:00:18.4]} 29. Bb1 {[%clk 0:00:17.2]} 29...
Bd8 {[%clk 0:00:10.9]} 30. Rh5 {[%clk 0:00:10.4]} 30... Rc7 {[%clk 0:00:09.4]}
31. Rhxg5 {[%clk 0:00:09.1]} 31... Bxg5 {[%clk 0:00:09.4]} 32. Rxg5 {[%clk
0:00:10]} 32... f5 {[%clk 0:00:07.2]} 33. Nxf4 {[%clk 0:00:09.8]} 33... Kh7
{[%clk 0:00:05.4]} 34. Qg1 {[%clk 0:00:07.9]} 34... Qxf4 {[%clk 0:00:03]} 35.
Rg7+ {[%clk 0:00:08.1]} 35... Kh8 {[%clk 0:00:02.8]} 36. Qg6 {[%clk 0:00:07]}
36... Nxc3 {[%clk 0:00:01.5]} 37. Qh7# {[%clk 0:00:06.6]} 1-0

[Event "*** Titled Tuesday Blitz"]
[Site "Chess.com"]
[Date "2021.04.20"]
[Round "9"]
[White "Didici"]
[Black "TimofeevAr"]
[Result "0-1"]
[WhiteElo "2596"]
[BlackElo "2816"]
[TimeControl "180+1"]
[EndTime "11:44:56 PDT"]
[Termination "TimofeevAr won by resignation"]

1. d4 {[%clk 0:03:00.9]} 1... Nf6 {[%clk 0:02:59.3]} 2. c4 {[%clk 0:03:01]} 2...
b6 {[%clk 0:02:59.6]} 3. Nc3 {[%clk 0:02:59]} 3... Bb7 {[%clk 0:02:59.5]} 4. Qc2
{[%clk 0:02:58.9]} 4... d5 {[%clk 0:02:54]} 5. cxd5 {[%clk 0:02:58.7]} 5... Nxd5
{[%clk 0:02:54.2]} 6. Nf3 {[%clk 0:02:57.4]} 6... e6 {[%clk 0:02:53.3]} 7. e4
{[%clk 0:02:56.1]} 7... Nxc3 {[%clk 0:02:52.7]} 8. bxc3 {[%clk 0:02:57]} 8...
Be7 {[%clk 0:02:52.3]} 9. Bd3 {[%clk 0:02:50.7]} 9... O-O {[%clk 0:02:51.8]} 10.
O-O {[%clk 0:02:43.2]} 10... c5 {[%clk 0:02:51.3]} 11. Qe2 {[%clk 0:02:39.4]}
11... Nc6 {[%clk 0:02:49.5]} 12. Bb2 {[%clk 0:02:36]} 12... Rc8 {[%clk
0:02:45.4]} 13. a3 {[%clk 0:02:17.6]} 13... Na5 {[%clk 0:02:41]} 14. Rad1 {[%clk
0:02:16.1]} 14... Qc7 {[%clk 0:02:39.3]} 15. Rfe1 {[%clk 0:02:08.2]} 15... Rfd8
{[%clk 0:02:38.4]} 16. h4 {[%clk 0:02:06.7]} 16... h6 {[%clk 0:02:37.9]} 17. Bc1
{[%clk 0:01:55.9]} 17... Nb3 {[%clk 0:02:32.1]} 18. Bb2 {[%clk 0:01:48.6]} 18...
Bf6 {[%clk 0:02:19.6]} 19. Bc2 {[%clk 0:01:23.3]} 19... Na5 {[%clk 0:02:18.3]}
20. Bd3 {[%clk 0:01:22.9]} 20... Qf4 {[%clk 0:02:10]} 21. g3 {[%clk 0:01:20.3]}
21... Qg4 {[%clk 0:02:07.2]} 22. Kg2 {[%clk 0:01:07.1]} 22... Be7 {[%clk
0:01:50.1]} 23. Ne5 {[%clk 0:01:05.5]} 23... Qxe2 {[%clk 0:01:49.9]} 24. Bxe2
{[%clk 0:01:06]} 24... cxd4 {[%clk 0:01:47.9]} 25. cxd4 {[%clk 0:01:05.5]} 25...
Rc2 {[%clk 0:01:47.5]} 26. Bc1 {[%clk 0:01:02.9]} 26... Nb3 {[%clk 0:01:46.3]}
27. Bf3 {[%clk 0:00:58.8]} 27... Nxd4 {[%clk 0:01:41.9]} 28. Be3 {[%clk
0:00:45.9]} 28... Nxf3 {[%clk 0:01:39.7]} 29. Rxd8+ {[%clk 0:00:46.8]} 29...
Bxd8 {[%clk 0:01:39.9]} 30. Kxf3 {[%clk 0:00:45.5]} 30... f5 {[%clk 0:01:36.3]}
31. Bd4 {[%clk 0:00:43.9]} 31... Bxe4+ {[%clk 0:01:35.8]} 32. Ke3 {[%clk
0:00:44.1]} 32... Be7 {[%clk 0:01:33.1]} 33. Ra1 {[%clk 0:00:43.3]} 33... Bd5
{[%clk 0:01:30.5]} 34. a4 {[%clk 0:00:43]} 34... Bc5 {[%clk 0:01:21.5]} 35. Bxc5
{[%clk 0:00:38.8]} 35... Rxc5 {[%clk 0:01:21.3]} 36. h5 {[%clk 0:00:28.2]} 36...
Rc3+ {[%clk 0:01:16.7]} 37. Kd4 {[%clk 0:00:27.5]} 37... Rc2 {[%clk 0:01:16.8]}
38. Kd3 {[%clk 0:00:26.4]} 38... Rxf2 {[%clk 0:01:11.8]} 39. Rc1 {[%clk
0:00:26]} 39... Be4+ {[%clk 0:01:12]} 40. Ke3 {[%clk 0:00:23.3]} 40... Rc2
{[%clk 0:01:12.2]} 41. Rd1 {[%clk 0:00:23.4]} 41... Bd5 {[%clk 0:01:12.2]} 42.
g4 {[%clk 0:00:18.9]} 42... fxg4 {[%clk 0:01:11.7]} 43. Rf1 {[%clk 0:00:17.7]}
43... g3 {[%clk 0:01:05.4]} 44. Ng6 {[%clk 0:00:16.6]} 44... Rf2 {[%clk
0:01:04.7]} 45. Rc1 {[%clk 0:00:15.6]} 45... Kf7 {[%clk 0:00:58.6]} 46. Ne5+
{[%clk 0:00:11.1]} 46... Ke7 {[%clk 0:00:54.8]} 47. Ng6+ {[%clk 0:00:05.4]}
47... Kd6 {[%clk 0:00:54.6]} 48. Rc8 {[%clk 0:00:04.5]} 48... Rf3+ {[%clk
0:00:53]} 49. Ke2 {[%clk 0:00:04.4]} 49... g2 {[%clk 0:00:52.7]} 50. Nh4 {[%clk
0:00:03.5]} 50... Rg3 {[%clk 0:00:48.7]} 51. Nxg2 {[%clk 0:00:03.5]} 51... Rxg2+
{[%clk 0:00:49]} 52. Ke3 {[%clk 0:00:04.4]} 52... Rg4 {[%clk 0:00:46.5]} 0-1

[Event "*** Titled Tuesday Blitz"]
[Site "Chess.com"]
[Date "2021.04.20"]
[Round "9"]
[White "adnan_nn"]
[Black "guillembaches"]
[Result "1-0"]
[WhiteElo "2661"]
[BlackElo "2518"]
[TimeControl "180+1"]
[EndTime "11:44:56 PDT"]
[Termination "adnan_nn won on time"]

1. e4 {[%clk 0:03:00.9]} 1... c5 {[%clk 0:03:00.1]} 2. b4 {[%clk 0:02:57.2]}
2... b6 {[%clk 0:02:58.6]} 3. bxc5 {[%clk 0:02:55.5]} 3... bxc5 {[%clk
0:02:59.5]} 4. Nc3 {[%clk 0:02:55.8]} 4... Nc6 {[%clk 0:02:56.2]} 5. Rb1 {[%clk
0:02:56.3]} 5... g6 {[%clk 0:02:55.1]} 6. Nf3 {[%clk 0:02:52.6]} 6... Bg7 {[%clk
0:02:54.7]} 7. Bb5 {[%clk 0:02:51.3]} 7... Nd4 {[%clk 0:02:42.7]} 8. Bc4 {[%clk
0:02:47.7]} 8... e6 {[%clk 0:02:31.4]} 9. e5 {[%clk 0:02:42.6]} 9... Ne7 {[%clk
0:02:22]} 10. Ne4 {[%clk 0:02:31.8]} 10... O-O {[%clk 0:02:06.1]} 11. Nf6+
{[%clk 0:02:23.4]} 11... Bxf6 {[%clk 0:01:51.1]} 12. exf6 {[%clk 0:02:24.3]}
12... Nec6 {[%clk 0:01:51.1]} 13. Nxd4 {[%clk 0:02:18.2]} 13... Nxd4 {[%clk
0:01:48.1]} 14. c3 {[%clk 0:02:14.1]} 14... d5 {[%clk 0:01:36.9]} 15. Bd3 {[%clk
0:02:00.5]} 15... Nf5 {[%clk 0:01:27.9]} 16. g4 {[%clk 0:01:56.3]} 16... Nh4
{[%clk 0:00:58.5]} 17. g5 {[%clk 0:01:50.1]} 17... e5 {[%clk 0:00:43.9]} 18. f3
{[%clk 0:01:39]} 18... e4 {[%clk 0:00:35.4]} 19. fxe4 {[%clk 0:01:32.4]} 19...
dxe4 {[%clk 0:00:34.5]} 20. Bxe4 {[%clk 0:01:32.3]} 20... Re8 {[%clk 0:00:33.8]}
21. d3 {[%clk 0:01:32.6]} 21... Bf5 {[%clk 0:00:25.7]} 22. O-O {[%clk
0:01:18.6]} 22... Bxe4 {[%clk 0:00:14.5]} 23. dxe4 {[%clk 0:01:19.5]} 23... Qc8
{[%clk 0:00:14]} 24. Rf4 {[%clk 0:00:52]} 24... Qh3 {[%clk 0:00:13.4]} 25. Qf1
{[%clk 0:00:52.6]} 25... Qxf1+ {[%clk 0:00:03.4]} 26. Kxf1 {[%clk 0:00:53.5]}
26... Rad8 {[%clk 0:00:03.6]} 27. Rxh4 {[%clk 0:00:46]} 27... Rd1+ {[%clk
0:00:03.1]} 28. Ke2 {[%clk 0:00:43]} 28... Red8 {[%clk 0:00:04]} 29. Rh3 {[%clk
0:00:31.1]} 29... h5 {[%clk 0:00:03.9]} 30. gxh6 {[%clk 0:00:29.5]} 30... Kh7
{[%clk 0:00:04.4]} 31. e5 {[%clk 0:00:29.1]} 31... Rh1 {[%clk 0:00:04.8]} 32. e6
{[%clk 0:00:26.4]} 32... fxe6 {[%clk 0:00:05.3]} 33. Rb7+ {[%clk 0:00:24.4]}
33... Kh8 {[%clk 0:00:04]} 34. Bf4 {[%clk 0:00:18.9]} 34... Ra1 {[%clk
0:00:03.6]} 35. Be5 {[%clk 0:00:18.1]} 35... Rxa2+ {[%clk 0:00:04.1]} 36. Ke3
{[%clk 0:00:18.3]} 36... c4 {[%clk 0:00:02.2]} 37. f7+ {[%clk 0:00:16.8]} 1-0

[Event "*** Titled Tuesday Blitz"]
[Site "Chess.com"]
[Date "2021.04.20"]
[Round "9"]
[White "albi1999"]
[Black "AwareIdea"]
[Result "0-1"]
[WhiteElo "2594"]
[BlackElo "2488"]
[TimeControl "180+1"]
[EndTime "11:44:56 PDT"]
[Termination "AwareIdea won on time"]

1. d4 {[%clk 0:03:00]} 1... d5 {[%clk 0:02:58.6]} 2. c4 {[%clk 0:02:59.3]} 2...
e6 {[%clk 0:02:58.7]} 3. Nf3 {[%clk 0:02:58.6]} 3... Nf6 {[%clk 0:02:58.8]} 4.
g3 {[%clk 0:02:57.8]} 4... dxc4 {[%clk 0:02:59.2]} 5. Bg2 {[%clk 0:02:57.8]}
5... Be7 {[%clk 0:02:59.8]} 6. Qa4+ {[%clk 0:02:54.9]} 6... Nbd7 {[%clk
0:02:58.3]} 7. Qxc4 {[%clk 0:02:53.7]} 7... a6 {[%clk 0:02:58.3]} 8. Qc2 {[%clk
0:02:49.3]} 8... O-O {[%clk 0:02:56.8]} 9. O-O {[%clk 0:02:47.7]} 9... c5 {[%clk
0:02:56.8]} 10. Rd1 {[%clk 0:02:45]} 10... cxd4 {[%clk 0:02:43]} 11. Nxd4 {[%clk
0:02:44]} 11... Qa5 {[%clk 0:02:33.7]} 12. Nc3 {[%clk 0:02:29.6]} 12... Nb6
{[%clk 0:02:26.8]} 13. Bf4 {[%clk 0:02:14.6]} 13... Nbd5 {[%clk 0:02:23.7]} 14.
Nb3 {[%clk 0:02:01.4]} 14... Qb4 {[%clk 0:02:14]} 15. Nxd5 {[%clk 0:01:55.2]}
15... Nxd5 {[%clk 0:02:14.9]} 16. Bd2 {[%clk 0:01:49.4]} 16... Qb6 {[%clk
0:02:12.5]} 17. Ba5 {[%clk 0:01:46.9]} 17... Qa7 {[%clk 0:02:08.2]} 18. e4
{[%clk 0:01:40.9]} 18... Nf6 {[%clk 0:01:59.3]} 19. Qc7 {[%clk 0:01:22.7]} 19...
Re8 {[%clk 0:01:58.7]} 20. Rac1 {[%clk 0:01:10.7]} 20... b5 {[%clk 0:01:54]} 21.
e5 {[%clk 0:00:46]} 21... Nd5 {[%clk 0:01:50.4]} 22. Rxd5 {[%clk 0:00:29.3]}
22... exd5 {[%clk 0:01:51.3]} 23. Bxd5 {[%clk 0:00:28.4]} 23... Be6 {[%clk
0:01:39.8]} 24. Bxa8 {[%clk 0:00:23.1]} 24... Qxa8 {[%clk 0:01:38.6]} 25. Qc6
{[%clk 0:00:23]} 25... Qb8 {[%clk 0:01:29.5]} 26. Bc7 {[%clk 0:00:22]} 26... Qc8
{[%clk 0:01:25.5]} 27. Bd6 {[%clk 0:00:20.5]} 27... Bg5 {[%clk 0:00:37.8]} 28.
Qxc8 {[%clk 0:00:17.1]} 28... Rxc8 {[%clk 0:00:35.6]} 29. Rxc8+ {[%clk
0:00:16.4]} 29... Bxc8 {[%clk 0:00:36.5]} 30. f4 {[%clk 0:00:16.4]} 30... Bd8
{[%clk 0:00:36.1]} 31. Kf2 {[%clk 0:00:16.8]} 31... Be6 {[%clk 0:00:35.5]} 32.
Ke3 {[%clk 0:00:16]} 32... Bb6+ {[%clk 0:00:35.7]} 33. Ke4 {[%clk 0:00:15.6]}
33... g6 {[%clk 0:00:35.9]} 34. Kd3 {[%clk 0:00:10.1]} 34... Bg1 {[%clk
0:00:32.1]} 35. h4 {[%clk 0:00:04.8]} 35... Bh2 {[%clk 0:00:32.1]} 36. Nc5
{[%clk 0:00:02.9]} 36... Bc8 {[%clk 0:00:28]} 37. Ke4 {[%clk 0:00:01.7]} 37...
Bxg3 {[%clk 0:00:26.8]} 38. h5 {[%clk 0:00:02.3]} 38... Bf2 {[%clk 0:00:20.6]}
39. hxg6 {[%clk 0:00:01.9]} 39... hxg6 {[%clk 0:00:21.5]} 0-1

[Event "*** Titled Tuesday Blitz"]
[Site "Chess.com"]
[Date "2021.04.20"]
[Round "9"]
[White "Aslanov_Umid"]
[Black "ybruned"]
[Result "0-1"]
[WhiteElo "2449"]
[BlackElo "2333"]
[TimeControl "180+1"]
[EndTime "11:44:56 PDT"]
[Termination "ybruned won by resignation"]

1. e4 {[%clk 0:03:00.9]} 1... b6 {[%clk 0:03:00.6]} 2. d4 {[%clk 0:03:00]} 2...
Bb7 {[%clk 0:03:01.1]} 3. Nc3 {[%clk 0:03:00.4]} 3... e6 {[%clk 0:03:01.6]} 4.
Nf3 {[%clk 0:02:59.5]} 4... Bb4 {[%clk 0:03:01.6]} 5. Bd3 {[%clk 0:02:57.7]}
5... Nf6 {[%clk 0:03:02]} 6. e5 {[%clk 0:02:53.3]} 6... Nd5 {[%clk 0:03:00.8]}
7. Bd2 {[%clk 0:02:52.5]} 7... Nxc3 {[%clk 0:02:59.5]} 8. bxc3 {[%clk
0:02:53.4]} 8... Be7 {[%clk 0:02:59.8]} 9. O-O {[%clk 0:02:52.5]} 9... d6 {[%clk
0:03:00.3]} 10. Qe2 {[%clk 0:02:51.8]} 10... Nd7 {[%clk 0:02:55.4]} 11. exd6
{[%clk 0:02:51]} 11... cxd6 {[%clk 0:02:54.2]} 12. Be4 {[%clk 0:02:49.3]} 12...
Bxe4 {[%clk 0:02:49.1]} 13. Qxe4 {[%clk 0:02:50.2]} 13... d5 {[%clk 0:02:49.5]}
14. Qg4 {[%clk 0:02:45]} 14... O-O {[%clk 0:02:50.1]} 15. Rfe1 {[%clk
0:02:33.6]} 15... Nf6 {[%clk 0:02:43.6]} 16. Qf4 {[%clk 0:02:24.4]} 16... Ne4
{[%clk 0:02:40.9]} 17. c4 {[%clk 0:02:03.4]} 17... Nxd2 {[%clk 0:02:35.1]} 18.
Qxd2 {[%clk 0:01:58.7]} 18... dxc4 {[%clk 0:02:33.7]} 19. Ne5 {[%clk 0:01:58.6]}
19... Rc8 {[%clk 0:02:30.5]} 20. Qf4 {[%clk 0:01:55.2]} 20... Bd6 {[%clk
0:02:14.1]} 21. Qg4 {[%clk 0:01:50.1]} 21... Bxe5 {[%clk 0:02:03.2]} 22. Rxe5
{[%clk 0:01:46.7]} 22... Qf6 {[%clk 0:02:02.8]} 23. Rae1 {[%clk 0:01:45.3]}
23... h6 {[%clk 0:02:01]} 24. c3 {[%clk 0:01:43.6]} 24... Rfd8 {[%clk
0:01:55.6]} 25. R1e3 {[%clk 0:01:42.9]} 25... Rc6 {[%clk 0:01:07.2]} 26. Rg3
{[%clk 0:01:08.1]} 26... Rcd6 {[%clk 0:01:01.7]} 27. h3 {[%clk 0:00:59.5]} 27...
Rd5 {[%clk 0:01:00.4]} 28. Rxd5 {[%clk 0:00:46.5]} 28... Rxd5 {[%clk 0:00:59]}
29. Qe2 {[%clk 0:00:41.6]} 29... b5 {[%clk 0:00:57.5]} 30. a4 {[%clk 0:00:35.8]}
30... a6 {[%clk 0:00:56.1]} 31. axb5 {[%clk 0:00:35.6]} 31... axb5 {[%clk
0:00:55.6]} 32. Rf3 {[%clk 0:00:34.8]} 32... Qg6 {[%clk 0:00:52.7]} 33. Rg3
{[%clk 0:00:35.2]} 33... Qb1+ {[%clk 0:00:51.5]} 34. Kh2 {[%clk 0:00:35.4]}
34... Qf5 {[%clk 0:00:50.8]} 35. Rf3 {[%clk 0:00:32]} 35... Qg5 {[%clk
0:00:49.9]} 36. Qa2 {[%clk 0:00:30.2]} 36... Rf5 {[%clk 0:00:44.4]} 37. Rg3
{[%clk 0:00:27.4]} 37... Qf6 {[%clk 0:00:41.3]} 38. Qa8+ {[%clk 0:00:26.5]}
38... Kh7 {[%clk 0:00:41.8]} 39. f3 {[%clk 0:00:26.7]} 39... g6 {[%clk
0:00:41.8]} 40. Qb7 {[%clk 0:00:25]} 40... h5 {[%clk 0:00:41.6]} 41. Qc7 {[%clk
0:00:16.8]} 41... Qh4 {[%clk 0:00:39.7]} 42. Qd7 {[%clk 0:00:13.9]} 42... Qf4
{[%clk 0:00:35.2]} 43. h4 {[%clk 0:00:14.4]} 43... Qxh4+ {[%clk 0:00:34.6]} 44.
Rh3 {[%clk 0:00:14.9]} 44... Qf4+ {[%clk 0:00:35.2]} 45. Kg1 {[%clk 0:00:15.3]}
45... Qc1+ {[%clk 0:00:34.9]} 46. Kh2 {[%clk 0:00:15.6]} 46... Qxc3 {[%clk
0:00:34.9]} 47. g3 {[%clk 0:00:15.4]} 47... Qd2+ {[%clk 0:00:33.6]} 48. Kg1
{[%clk 0:00:15.1]} 48... Qd1+ {[%clk 0:00:33.7]} 49. Kg2 {[%clk 0:00:15.2]}
49... Qxf3+ {[%clk 0:00:33.8]} 50. Kh2 {[%clk 0:00:15.7]} 0-1

[Event "*** Titled Tuesday Blitz"]
[Site "Chess.com"]
[Date "2021.04.20"]
[Round "9"]
[White "ecwinslow"]
[Black "WinstonSilvakov"]
[Result "0-1"]
[WhiteElo "2233"]
[BlackElo "2092"]
[TimeControl "180+1"]
[EndTime "11:45:00 PDT"]
[Termination "WinstonSilvakov won on time"]

1. e4 {[%clk 0:03:00.9]} 1... Nf6 {[%clk 0:02:56.2]} 2. e5 {[%clk 0:03:00.1]}
2... Nd5 {[%clk 0:02:51.9]} 3. d4 {[%clk 0:03:00.5]} 3... d6 {[%clk 0:02:51.5]}
4. Nf3 {[%clk 0:03:00.2]} 4... Nb6 {[%clk 0:02:51.5]} 5. a4 {[%clk 0:02:54.1]}
5... a5 {[%clk 0:02:50.3]} 6. h3 {[%clk 0:02:40.7]} 6... g6 {[%clk 0:02:49]} 7.
Bf4 {[%clk 0:02:34]} 7... Bg7 {[%clk 0:02:48.2]} 8. Nc3 {[%clk 0:02:32.2]} 8...
Nc6 {[%clk 0:02:45.3]} 9. Bb5 {[%clk 0:02:25.4]} 9... O-O {[%clk 0:02:41.9]} 10.
Bh6 {[%clk 0:02:19.4]} 10... dxe5 {[%clk 0:02:35.9]} 11. Bxg7 {[%clk 0:02:13.3]}
11... Kxg7 {[%clk 0:02:34.1]} 12. dxe5 {[%clk 0:02:12.2]} 12... Bf5 {[%clk
0:02:27.4]} 13. Qe2 {[%clk 0:02:04.5]} 13... Nd4 {[%clk 0:01:45.6]} 14. Nxd4
{[%clk 0:02:01.1]} 14... Qxd4 {[%clk 0:01:44.7]} 15. O-O {[%clk 0:01:57.3]}
15... c6 {[%clk 0:01:42.7]} 16. Bd3 {[%clk 0:01:52.9]} 16... Bxd3 {[%clk
0:01:37.2]} 17. cxd3 {[%clk 0:01:52.6]} 17... Rad8 {[%clk 0:01:36.9]} 18. Rad1
{[%clk 0:01:52.4]} 18... e6 {[%clk 0:01:33.5]} 19. Kh1 {[%clk 0:01:50.1]} 19...
Nd5 {[%clk 0:01:31.7]} 20. Ne4 {[%clk 0:01:46.7]} 20... Qxe5 {[%clk 0:01:25.8]}
21. d4 {[%clk 0:01:42.2]} 21... Qc7 {[%clk 0:01:19.4]} 22. g3 {[%clk 0:01:30.6]}
22... Qe7 {[%clk 0:01:02.8]} 23. b3 {[%clk 0:01:19.4]} 23... Nf6 {[%clk
0:00:58.3]} 24. Ng5 {[%clk 0:01:12.6]} 24... h6 {[%clk 0:00:56.6]} 25. Nf3
{[%clk 0:01:10.4]} 25... Rd5 {[%clk 0:00:56.8]} 26. Rfe1 {[%clk 0:00:57.7]}
26... Rfd8 {[%clk 0:00:56.3]} 27. Qc4 {[%clk 0:00:57.6]} 27... Nd7 {[%clk
0:00:51.3]} 28. Qc3 {[%clk 0:00:49.1]} 28... Qd6 {[%clk 0:00:49.7]} 29. Rd2
{[%clk 0:00:44.1]} 29... f6 {[%clk 0:00:48]} 30. Rde2 {[%clk 0:00:41.2]} 30...
Nf8 {[%clk 0:00:46.6]} 31. Kg2 {[%clk 0:00:37.9]} 31... Rf5 {[%clk 0:00:46.6]}
32. Kh2 {[%clk 0:00:32.9]} 32... c5 {[%clk 0:00:44.6]} 33. Re4 {[%clk
0:00:23.9]} 33... Rd5 {[%clk 0:00:34.5]} 34. dxc5 {[%clk 0:00:12.5]} 34... Rxc5
{[%clk 0:00:35.4]} 35. Qe3 {[%clk 0:00:12.3]} 35... e5 {[%clk 0:00:34.4]} 36. h4
{[%clk 0:00:11.1]} 36... Rd5 {[%clk 0:00:33.8]} 37. h5 {[%clk 0:00:10.5]} 37...
Rd3 {[%clk 0:00:34.2]} 38. Qe2 {[%clk 0:00:09.9]} 38... g5 {[%clk 0:00:34.3]}
39. Kg1 {[%clk 0:00:06.7]} 39... Ne6 {[%clk 0:00:34.5]} 40. Nh2 {[%clk
0:00:05.8]} 40... Rxb3 {[%clk 0:00:33]} 41. Ng4 {[%clk 0:00:05.1]} 41... Qd3
{[%clk 0:00:32.5]} 42. Rxe5 {[%clk 0:00:02.4]} 42... Qxe2 {[%clk 0:00:30.8]} 43.
R5xe2 {[%clk 0:00:02.1]} 43... Nd4 {[%clk 0:00:29.1]} 44. Re7+ {[%clk
0:00:02.1]} 44... Kf8 {[%clk 0:00:29.4]} 45. Nxf6 {[%clk 0:00:01.4]} 45... Nf3+
{[%clk 0:00:29.4]} 46. Kh1 {[%clk 0:00:01.4]} 46... Nxe1 {[%clk 0:00:30.3]} 47.
Rxb7 {[%clk 0:00:01.1]} 47... Rd1 {[%clk 0:00:28.3]} 0-1